Cogmind - Beta 16 @@@ ROGUE MODE // 2026.01.14 @ 11:27:02 Player: GermanMO Result: Destroyed by Y-72 Warden with Quantum Rifle Performance ------------- Evolutions (6) 3000 Regions Visited (11) 2200 Robots Destroyed (44) 220 Value Destroyed (2438) 2438 Prototype IDs (2) 40 Alien Tech Used (0) 0 Bonus (4062) 4062 TOTAL SCORE: 11960 Bonus ------- High Alert Combat Kills 872 Follower Combat Kills 1855 Entered Garrisons 200 Used RIF Installer 500 Registered with UFD 300 Met Optimus in HQ 500 Friendly Fire -165 Cogmind --------- Core Integrity 0/1150 Matter 42/300 Energy 100/100 System Corruption 0% Temperature Cool (9) Movement Core (50) Location -4/Factory Parts ------- > --- POWER (2) -------- (None) > --- PROPULSION (4) --- (None) > --- UTILITY (9) ------ Surveybot 17 Chip Authchip [R/NC] Authchip [R/Combat] Authchip [R/Combat] Authchip [R/Combat] > --- WEAPON (4) ------- (None) > --- INVENTORY (5) ---- Improved Terrain Scanner Authchip [R/Combat] Authchip [R/Combat] Relay Coupler [NC] (35) DRS Beacon (Ready) Peak State ------------ > --- POWER ------------ Fusion Compressor Light Antimatter Reactor > --- PROPULSION ------- Combat Airjet Gyrokinetic Inverter Improved Antigrav System > --- UTILITY ---------- Experimental Sensor Array Improved Signal Interpreter Improved Terrain Scanner Improved Terrain Scanner Advanced Terrain Scanner Surveybot 17 Chip Advanced Phase Shifter > --- WEAPON ----------- Micro-nuke Launcher > --- INVENTORY -------- Grenade Launcher DRS Beacon Large Botcube [Rating: 79] Favorites ----------- Power Ion Engine Engine Ion Engine Power Core Fusion Compressor Reactor Light Antimatter Reactor Propulsion Wheel Leg Flexi-carbon Leg Wheel Wheel Hover Unit Gyrokinetic Inverter Flight Unit Cesium-ion Thruster Utility Improved Terrain Scanner Device Improved Terrain Scanner Processor Surveybot 17 Chip Hackware Authchip [R/Combat] Weapon Bore Cannon Energy Gun Wave Gun Ballistic Gun Assault Rifle Ballistic Cannon Bore Cannon Launcher Micro-nuke Launcher Special Weapon Remote Datajack Impact Weapon Maul Slashing Weapon Phasing Sabre Build | -11 -10 -10 -10 -9 -6 -5 -4 -4 -4 -4 -4 ------- Run | Yrd Mat Min Sub Scr Fac Fac Fac Was Fac Gar Fac Slots Evolved 12 | . . . . . 8 2 2 . . . . Power 1 | . . . . . 1 . . . . . . Propulsion 2 | . . . . . 1 1 . . . . . Utility 7 | . . . . . 6 1 . . . . . Weapon 2 | . . . . . . . 2 . . . . Parts Attached 53 | 7 . 2 . 4 8 5 7 . . 16 4 Power 3 | 1 . . . . . . 2 . . . . Engine 1 | 1 . . . . . . . . . . . Core 1 | . . . . . . . 1 . . . . Reactor 1 | . . . . . . . 1 . . . . Propulsion 12 | 2 . . . 1 2 3 1 . . 2 1 Treads . | . . . . . . . . . . . . Leg 1 | . . . . . . . . . . 1 . Wheel 4 | 2 . . . 1 . . . . . 1 . Hover 5 | . . . . . 1 2 1 . . . 1 Flight 2 | . . . . . 1 1 . . . . . Utility 26 | 2 . 1 . 2 5 2 3 . . 11 . Device 14 | 2 . 1 . 1 4 2 3 . . 1 . Storage . | . . . . . . . . . . . . Processor 2 | . . . . 1 1 . . . . . . Hackware 10 | . . . . . . . . . . 10 . Protection . | . . . . . . . . . . . . Artifact . | . . . . . . . . . . . . Weapon 12 | 2 . 1 . 1 1 . 1 . . 3 3 Energy Gun 2 | 1 . . . . . . . . . 1 . Energy Cannon . | . . . . . . . . . . . . Ballistic Gun 1 | 1 . . . . . . . . . . . Ballistic Cannon 2 | . . 1 . . . . . . . 1 . Launcher 4 | . . . . . 1 . 1 . . . 2 Special Weapon 1 | . . . . . . . . . . . 1 Impact Weapon 1 | . . . . 1 . . . . . . . Slashing Weapon 1 | . . . . . . . . . . 1 . Piercing Weapon . | . . . . . . . . . . . . Special Melee Weapon . | . . . . . . . . . . . . Unidentified Prototypes 2 | . . 1 . . . . . . . . 1 Parts Lost 37 | . . . . . 4 6 1 . . 14 12 Power 3 | . . . . . 1 . . . . 2 . Propulsion 11 | . . . . . 2 1 1 . . 4 3 Utility 15 | . . . . . 1 4 . . . 6 4 Weapon 8 | . . . . . . 1 . . . 2 5 Highest Loss Streak 9 | . . . . . 4 5 1 . . 3 9 To Critical Strikes 1 | . . . . . . . . . . 1 . Average Backups 3 | . 4 5 5 4 1 2 1 1 2 2 3 Power . | . 1 1 1 . . . . . . . . Propulsion . | . 1 1 1 . . . . . . . . Utility 2 | . 2 3 3 2 . 1 . . 1 2 3 Weapon . | . . . . . 1 1 1 1 1 . . Tool/Special . | . . . . . . . . . . . . Unused Backups 7 | . . . . 3 . . . . . . 4 Power 1 | . . . . 1 . . . . . . . Propulsion . | . . . . . . . . . . . . Utility 6 | . . . . 2 . . . . . . 4 Weapon . | . . . . . . . . . . . . Tool/Special . | . . . . . . . . . . . . Average Slot Usage (%) 76 | . 100 100 100 99 50 53 54 63 63 60 71 Engine 6 | . 14 14 14 14 3 . . . . 2 . Core 1 | . . . . . . . 4 5 5 5 3 Wheel 13 | . 28 28 28 27 8 . . . . . 4 Hover 5 | . . . . . . 9 18 15 15 10 9 Flight 1 | . . . . . 1 9 1 . . . . Device 15 | . 28 28 28 20 12 15 13 21 21 5 . Processor 7 | . . . . 7 11 11 10 10 10 9 5 Hackware 6 | . . . . . . . . . . 17 40 Ballistic Gun 5 | . 14 14 14 11 . . . . . . . Ballistic Cannon 6 | . . 10 14 13 3 . . . . . . Impact Weapon 1 | . . . . 2 6 4 . . . . . Slashing Weapon 1 | . . . . . . . . . . 4 3 Peak Build Rating 79 | 9 9 21 21 24 35 52 76 71 71 79 74 Average Rating 36 | 6 9 14 21 21 30 42 61 70 71 52 60 On Entrance 35 | . 9 9 21 21 24 30 37 70 71 71 61 Avg Prop Armor Cover (%) 7 | . . . . . 9 8 5 . . 8 7 Naked Turns . | . . . . . . . . . . . . Heaviest Build 35 | 11 11 18 18 18 19 11 32 32 32 35 26 Greatest Support 45 | 20 20 20 20 20 20 32 45 36 36 36 29 Greatest Overweight (x) 2 | 2 . . . . 1 1 . . . 2 1 Average Overweight (x) . | . . . . . . . . . . . . Largest Inventory Capacity 5 | 5 5 5 5 5 5 5 5 5 5 5 5 Average Capacity 5 | 5 5 5 5 5 5 5 5 5 5 5 5 Most Carried 5 | 3 5 5 5 5 5 5 5 5 5 5 5 Average Carried 4 | . 4 5 5 4 4 5 4 4 5 4 4 Final Capacity 5 | 5 5 5 5 5 5 5 5 5 5 5 5 Final Carried 5 | 3 5 5 5 5 5 5 4 5 5 5 5 Class Distribution -------------------- 87% | Mutant 6% | Scout 5% | Assassin Dominant Class ---------------- Mutant | -10/Materials Mutant | -10/Mines Mutant | -10/Subcaves Mutant | -9/Scraptown Assassin | -6/Factory Mutant | -5/Factory Mutant | -4/Factory Scout | -4/Waste Scout | -4/Factory Mutant | -4/Garrison Mutant | -4/Factory Resources | -11 -10 -10 -10 -9 -6 -5 -4 -4 -4 -4 -4 ----------- Run | Yrd Mat Min Sub Scr Fac Fac Fac Was Fac Gar Fac Matter Collected 2572 | 306 . 85 45 265 279 . . 385 . 1185 22 Remotely . | . . . . . . . . . . . . Salvage Created 1462 | 242 . 185 45 . 59 24 . . . 853 54 Parts 86 | 22 . 23 1 . 5 . . . . 31 4 Haulers Intercepted . | . . . . . . . . . . . . Recyclers Shooed 1 | . . 1 . . . . . . . . . Parts Field Recycled . | . . . . . . . . . . . . Retrieved Matter . | . . . . . . . . . . . . Parts Self-Destructed 8 | . . . 8 . . . . . . . . Prevented . | . . . . . . . . . . . . Parts Restored . | . . . . . . . . . . . . Kills | -11 -10 -10 -10 -9 -6 -5 -4 -4 -4 -4 -4 ------- Run | Yrd Mat Min Sub Scr Fac Fac Fac Was Fac Gar Fac Combat Hostiles Destroyed 26 | . . . 1 . 4 . . . . 19 2 Melee 8 | . . . . . . . . . . 8 . Guns 2 | . . . . . . . . . . . 2 Cannons 5 | . . . 1 . 4 . . . . . . AOE 11 | . . . . . . . . . . 11 . Classes Destroyed 11 | 3 . 1 1 . 1 . . . . 5 . Worker 3 | 2 . . . . . . . . . . 1 Builder 5 | . . 4 . . . 1 . . . . . Tunneler 8 | 5 . 3 . . . . . . . . . Recycler 2 | 1 . 1 . . . . . . . . . Swarmer 13 | . . . . . 4 . . . . 7 2 Grunt 4 | . . . . . . . . . . 4 . Brawler 1 | . . . . . . . . . . 1 . Duelist 1 | . . . . . . . . . . 1 . Sentry 2 | . . . . . . . . . . 2 . Specialist 4 | . . . . . . . . . . 4 . Subdweller 1 | . . . 1 . . . . . . . . Best Kill Streak 5 | 4 . 4 1 . 4 1 . . . 5 2 Combat Bots Only 5 | . . . 1 . 4 . . . . 5 2 Max Kills in Single Turn 4 | 1 . 2 1 . 1 1 . . . 4 1 Gunslinging . | . . . . . . . . . . . . Exploded 4 | . . . . . . . . . . 4 . Melee 1 | . . . . . . . . . . 1 . Uniques/NPCs Destroyed . | . . . . . . . . . . . . Combat | -11 -10 -10 -10 -9 -6 -5 -4 -4 -4 -4 -4 -------- Run | Yrd Mat Min Sub Scr Fac Fac Fac Was Fac Gar Fac Hostile Shots Fired 286 | . 17 . 3 . 72 37 2 . . 71 84 Missed 108 | . 6 . 1 . 23 15 1 . . 23 39 Hits 178 | . 11 . 2 . 49 22 1 . . 48 45 Projectile 178 | . 11 . 2 . 49 22 1 . . 48 45 AOE 1 | . . . . . . . . . . . 1 Critical Strikes 9 | . . . . . . 4 . . . 4 1 Damage Taken 3659 | . 82 . 43 . 305 491 158 12 . 1391 1177 Core 1313 | . 14 . . . 40 97 . . . 482 680 Absorbed by Shields 15 | . . . . . . . . . . 15 . Regen/Repaired (Parts) 327 | . . . . . . . . 94 . 233 . Core Remaining (%) 94 | 100 . . . 94 95 90 . . . . . Volleys Fired 120 | 12 3 21 12 . 25 . . 5 . 31 11 Largest 2 | 2 2 2 2 . 1 . . 1 . 1 1 Hottest 81 | 60 60 68 68 . 48 . . 49 . 81 81 Shots Fired 168 | 24 6 42 24 . 25 . . 5 . 31 11 Gun 71 | 24 6 21 12 . . . . . . 2 6 Cannon 56 | . . 21 12 . 23 . . . . . . Launcher 39 | . . . . . 2 . . 5 . 29 3 Special 2 | . . . . . . . . . . . 2 Kinetic 104 | 12 3 42 24 . 23 . . . . . . Thermal 8 | . . . . . . . . . . 2 6 Explosive 39 | . . . . . 2 . . 5 . 29 3 Electromagnetic 15 | 12 3 . . . . . . . . . . Robot Hit Streak 9 | 9 2 4 2 . 2 . . 3 . 2 6 Robot Miss Streak 3 | 2 3 3 2 . 3 . . 1 . 3 2 Penetration Max 1 | . . 1 . . . . . . . . . Secondary Targets . | . . . . . . . . . . . . Shots Hit Robots 78 | 15 2 15 3 . 8 1 . 2 . 24 8 Core Hits 73 | 9 . 9 1 . 4 . . . . 46 4 Critical Kills 7 | 1 . 2 1 . 3 . . . . . . Critical Parts Destroyed 5 | . . 2 . . 2 1 . . . . . Critical Strikes 16 | 1 . 4 1 . 5 1 . . . 4 . Destroy 11 | 1 . 4 1 . 5 . . . . . . Smash 1 | . . . . . . 1 . . . . . Sever 4 | . . . . . . . . . . 4 . Melee Attacks 61 | . . . . . 20 9 . . . 32 . Impact 29 | . . . . . 20 9 . . . . . Slashing 32 | . . . . . . . . . . 32 . Piercing . | . . . . . . . . . . . . Sneak Attacks 9 | . . . . . . 1 . . . 8 . Combat Hostiles . | . . . . . . . . . . . . Follow-up Attacks . | . . . . . . . . . . . . Damage Inflicted 5698 | 209 10 251 25 . 196 54 . 584 . 4044 325 Guns 412 | 209 10 121 . . . . . . . . 72 Cannons 351 | . . 130 25 . 196 . . . . . . Explosions 3691 | . . . . . . . . 584 . 2854 253 Melee 1244 | . . . . . . 54 . . . 1190 . Ramming . | . . . . . . . . . . . . Kinetic 556 | 74 10 251 25 . 196 . . . . . . Thermal 72 | . . . . . . . . . . . 72 Explosive 3691 | . . . . . . . . 584 . 2854 253 Electromagnetic 135 | 135 . . . . . . . . . . . Impact 54 | . . . . . . 54 . . . . . Slashing 1190 | . . . . . . . . . . 1190 . Piercing . | . . . . . . . . . . . . Highest Corruption 3 | . . . . . . 3 . . . . . Average Corruption 1 | . . . . . . 1 . . . . . Corruption Purged . | . . . . . . . . . . . . Corruption Blocked . | . . . . . . . . . . . . Overload Shots . | . . . . . . . . . . . . Overflow Damage 134 | . . . . . . 54 . . . 80 . Projectiles . | . . . . . . . . . . . . Explosions 79 | . . . . . . . . . . 79 . Melee 55 | . . . . . . 54 . . . 1 . Knockbacks 4 | . . 2 . . 2 . . . . . . Impact . | . . . . . . . . . . . . Kinetic 4 | . . 2 . . 2 . . . . . . Secondary . | . . . . . . . . . . . . Self-Inflicted Damage 236 | . . . . . . . . 6 . 230 . Shots 6 | . . . . . . . . 1 . 5 . Rammed . | . . . . . . . . . . . . Targets Rammed . | . . . . . . . . . . . . Kicked . | . . . . . . . . . . . . Crushed . | . . . . . . . . . . . . Highest Temperature 198 | . 20 50 4 . 1 . 198 3 . 88 139 Average Temperature 54 | . 20 18 4 . 1 . 108 3 . 22 68 Received Heat Transfer 448 | . . . 12 . 51 135 . . . 154 96 Siege Activations . | . . . . . . . . . . . . Martial Activations . | . . . . . . . . . . . . Shielding Activations . | . . . . . . . . . . . . Robots Disrupted . | . . . . . . . . . . . . Combat Hostiles . | . . . . . . . . . . . . Robots Corrupted 1 | . . . . . . 1 . . . . . Combat Hostiles . | . . . . . . . . . . . . Parts Fried 3 | . . . . . . 3 . . . . . Impact Corruptions 3 | . . . . . . 3 . . . . . Robots Melted . | . . . . . . . . . . . . Combat Hostiles . | . . . . . . . . . . . . Parts Melted . | . . . . . . . . . . . . Heat Transferred 111 | . . . . . . . . . . . 111 Parts Sabotaged . | . . . . . . . . . . . . Parts Stolen . | . . . . . . . . . . . . Parts Stripped . | . . . . . . . . . . . . Power Chain Reactions . | . . . . . . . . . . . . Alert | -11 -10 -10 -10 -9 -6 -5 -4 -4 -4 -4 -4 ------- Run | Yrd Mat Min Sub Scr Fac Fac Fac Was Fac Gar Fac Maximum Alert Level 5 | . . . . . 1 . . . 1 5 5 Low Security (%) 53 | 100 100 100 . . 92 100 100 100 47 . . Level 1 2 | . . . . . 7 . . . 52 . . Level 2 4 | . . . . . . . . . . 12 . Level 3 6 | . . . . . . . . . . 18 . Level 4 13 | . . . . . . . . . . 12 96 Level 5 19 | . . . . . . . . . . 55 3 High Security . | . . . . . . . . . . . . Max Security . | . . . . . . . . . . . . Peak Influence 2769 | 10 11 16 . . 304 142 15 108 374 2769 1600 Initial 1453 | . 6 . . . . 142 . . 54 254 1453 Average 748 | 3 2 1 . . 57 71 . 46 209 1684 1492 Influence Increases 4361 | 40 5 48 . . 476 126 30 178 340 2825 293 Destroy 0b10 Robot/C 1200 | . . . . . 80 . . . 100 900 120 Destroy 0b10 Robot/NC 105 | 40 . 40 . . . 5 . . 5 . 15 Destroy Leader 92 | . . . . . 10 . . . 22 30 30 Allied During Kill 1014 | . . . . . . . . . 127 807 80 Successful Hack 47 | . 5 . . . . . . . 14 16 12 Disable Machine 180 | . . . . . 45 . . . 30 105 . Anti-Garrison Action 450 | . . . . . . . . . . 450 . Destroy Structure 808 | . . 8 . . 41 16 . 178 42 517 6 Partial Spotted 75 | . . . . . 30 . 30 . . . 15 Lose Combat Pursuer 390 | . . . . . 270 105 . . . . 15 Influence Decreases 3053 | 30 15 48 . . 184 418 30 100 54 420 1754 Entered New Map 1604 | . 4 . . . . 150 . . 24 110 1316 Time Decay 756 | 30 11 48 . . 144 215 20 60 30 . 198 Lost Part 363 | . . . . . 40 53 10 . . 140 120 Lost Ally 330 | . . . . . . . . 40 . 170 120 Squads Dispatched 11 | . 1 . . . 1 3 2 . 2 . 2 Investigation . | . . . . . . . . . . . . Extermination 3 | . . . . . 1 1 1 . . . . Reinforcement 6 | . 1 . . . . 2 1 . 1 . 1 Assault 1 | . . . . . . . . . . . 1 Garrison 1 | . . . . . . . . . 1 . . Intercept . | . . . . . . . . . . . . Searches Triggered . | . . . . . . . . . . . . Construction Impeded 1 | . . . . . . 1 . . . . . Haulers Reinforced 1 | . . . . . . . . . . . 1 Active Scanning Responses . | . . . . . . . . . . . . Cargo Convoy Interrupts . | . . . . . . . . . . . . Stealth | -11 -10 -10 -10 -9 -6 -5 -4 -4 -4 -4 -4 --------- Run | Yrd Mat Min Sub Scr Fac Fac Fac Was Fac Gar Fac Distress Signals 1 | . . . . . . . 1 . . . . Communications Jammed . | . . . . . . . . . . . . Distress Signals . | . . . . . . . . . . . . Times Spotted 121 | . 6 . 1 . 22 16 4 6 6 41 19 Peak Tracking Total 14 | . 5 . 1 . 11 8 4 4 3 5 14 Tactical Retreats 8 | . . . . . 5 2 . . . . 1 Traps | -11 -10 -10 -10 -9 -6 -5 -4 -4 -4 -4 -4 ------- Run | Yrd Mat Min Sub Scr Fac Fac Fac Was Fac Gar Fac Traps Triggered 13 | . . . . . . 2 2 . . 5 4 Indirectly . | . . . . . . . . . . . . Trap Hack Attempts . | . . . . . . . . . . . . Triggered . | . . . . . . . . . . . . Disarmed . | . . . . . . . . . . . . Reprogrammed . | . . . . . . . . . . . . Reused . | . . . . . . . . . . . . Traps Extracted . | . . . . . . . . . . . . Installed . | . . . . . . . . . . . . Triggered . | . . . . . . . . . . . . Machines | -11 -10 -10 -10 -9 -6 -5 -4 -4 -4 -4 -4 ---------- Run | Yrd Mat Min Sub Scr Fac Fac Fac Was Fac Gar Fac Machines Disabled 23 | . . . . . 3 . . . 2 18 . Max in Single Turn 2 | . . . . . 1 . . . . 2 . Garrison Relay 5 | . . . . . . . . . . 5 . Phase Generator 1 | . . . . . . . . . . 1 . Machines Repaired . | . . . . . . . . . . . . Machines Dismantled . | . . . . . . . . . . . . Machines Sabotaged . | . . . . . . . . . . . . Overloaded Fab Kills . | . . . . . . . . . . . . Hacking | -11 -10 -10 -10 -9 -6 -5 -4 -4 -4 -4 -4 --------- Run | Yrd Mat Min Sub Scr Fac Fac Fac Was Fac Gar Fac Machines Accessed 16 | . 1 . . 8 . . 2 . 1 2 2 Terminals 4 | . 1 . . . . . 1 . . 2 . Fabricators 1 | . . . . . . . . . . . 1 Repair Stations . | . . . . . . . . . . . . Recycling Units . | . . . . . . . . . . . . Scanalyzers 2 | . . . . . . . 1 . . . 1 Garrison Access 1 | . . . . . . . . . 1 . . Total Hacks 66 | . 1 . . 50 . . 4 . 2 7 2 Successful 55 | . 1 . . 50 . . 1 . 1 1 1 Failed 10 | . . . . . . . 2 . 1 6 1 Catastrophic 1 | . . . . . . . . . . 1 . Database Lockouts 1 | . . . . . . . 1 . . . . Manual 1 | . 1 . . . . . . . . . . Terminals 9 | . 1 . . . . . 1 . . 7 . Fabricators 1 | . . . . . . . . . . . 1 Repair Stations . | . . . . . . . . . . . . Recycling Units . | . . . . . . . . . . . . Scanalyzers 4 | . . . . . . . 3 . . . 1 Garrison Access 2 | . . . . . . . . . 2 . . Terminal Hacks 51 | . . . . 50 . . . . . 1 . Record 50 | . . . . 50 . . . . . . . Security Stations 1 | . . . . . . . . . . 1 . Fabricator Hacks . | . . . . . . . . . . . . Repair Station Hacks . | . . . . . . . . . . . . Recycling Unit Hacks . | . . . . . . . . . . . . Scanalyzer 2 | . . . . . . . 1 . . . 1 Retrieve Study 2 | . . . . . . . 1 . . . 1 Garrison Access Hacks 1 | . . . . . . . . . 1 . . Unlock Access 1 | . . . . . . . . . 1 . . Unauthorized Hacks 1 | . 1 . . . . . . . . . . Terminals 1 | . 1 . . . . . . . . . . Botnet 1 | . 1 . . . . . . . . . . Fabricators . | . . . . . . . . . . . . Repair Stations . | . . . . . . . . . . . . Recycling Units . | . . . . . . . . . . . . Scanalyzers . | . . . . . . . . . . . . Garrison Access . | . . . . . . . . . . . . Data Cores Recovered . | . . . . . . . . . . . . Used . | . . . . . . . . . . . . Hacking Detections 5 | . . . . . . . . . 1 2 2 Full Trace Events 2 | . . . . . . . . . . 2 . Feedback Events . | . . . . . . . . . . . . Feedback Blocked . | . . . . . . . . . . . . Robot Schematics Acquired . | . . . . . . . . . . . . Robots Built . | . . . . . . . . . . . . Authchips . | . . . . . . . . . . . . Time . | . . . . . . . . . . . . Total Robot Build Rating . | . . . . . . . . . . . . Part Schematics Acquired . | . . . . . . . . . . . . Parts Built . | . . . . . . . . . . . . Authchips . | . . . . . . . . . . . . Time . | . . . . . . . . . . . . Total Part Build Rating . | . . . . . . . . . . . . Part Studies Acquired 2 | . . . . . . . 1 . . . 1 Parts Repaired . | . . . . . . . . . . . . Time . | . . . . . . . . . . . . Parts Recycled . | . . . . . . . . . . . . Recycled Matter . | . . . . . . . . . . . . Retrieved Matter . | . . . . . . . . . . . . Retrieved Components . | . . . . . . . . . . . . Parts Scanalyzed . | . . . . . . . . . . . . Part Schematics Acquired . | . . . . . . . . . . . . Parts Damaged . | . . . . . . . . . . . . Bothacking | -11 -10 -10 -10 -9 -6 -5 -4 -4 -4 -4 -4 ------------ Run | Yrd Mat Min Sub Scr Fac Fac Fac Was Fac Gar Fac Used RIF Installer 1 | . . . . . . . . . . 1 . Robots Hacked . | . . . . . . . . . . . . Non-combat . | . . . . . . . . . . . . Combat . | . . . . . . . . . . . . Robot Hacks Applied . | . . . . . . . . . . . . Relay Couplers Released 20 | . . . . . . . . . . 20 . Machine Destruction 20 | . . . . . . . . . . 20 . Attached 3 | . . . . . . . . . . 3 . Fabnet Peak Effective % . | . . . . . . . . . . . . Robots Rewired . | . . . . . . . . . . . . Allies Hacked . | . . . . . . . . . . . . Hacks Repelled . | . . . . . . . . . . . . Allies | -11 -10 -10 -10 -9 -6 -5 -4 -4 -4 -4 -4 -------- Run | Yrd Mat Min Sub Scr Fac Fac Fac Was Fac Gar Fac Total Allies 23 | . . . . . . . . 19 . 3 1 Largest Group 19 | . . . . . . . . 19 13 12 6 Highest-Rated Group 702 | . . . . . . . . 702 552 499 343 Highest-Rated Ally 95 | . . . . . . . . 50 50 95 95 Total Orders . | . . . . . . . . . . . . Ally Attacks 344 | . . . . . . . . 116 17 171 40 Total Damage 11426 | . . . . . . . . 3671 827 5712 1216 Kills 50 | . . . . . . . . 10 6 27 7 Allies Corrupted . | . . . . . . . . . . . . Allies Melted . | . . . . . . . . . . . . Intel | -11 -10 -10 -10 -9 -6 -5 -4 -4 -4 -4 -4 ------- Run | Yrd Mat Min Sub Scr Fac Fac Fac Was Fac Gar Fac Active Infowar (turns) 5513 | 70 93 350 206 2100 634 476 263 186 71 1064 . Sensors 2856 | . . 103 206 1039 594 476 169 186 71 12 . Terrain 4804 | 70 93 350 206 2100 401 . 263 186 71 1064 . Seismic 358 | 18 93 247 . . . . . . . . . Robot Analysis Total . | . . . . . . . . . . . . Derelict Logs Recovered 1 | . . . 1 . . . . . . . . Drone Launches . | . . . . . . . . . . . . Drone Recoveries . | . . . . . . . . . . . . Exploration | -11 -10 -10 -10 -9 -6 -5 -4 -4 -4 -4 -4 ------------- Run | Yrd Mat Min Sub Scr Fac Fac Fac Was Fac Gar Fac Turns Passed 6423 | 116 93 350 206 2101 634 489 360 186 71 1413 404 Spaces Moved 6627 | 71 102 306 176 2352 584 565 498 216 72 1241 444 Core 62 | 19 . . . . 20 . 1 . . . 22 Treads . | . . . . . . . . . . . . Legs . | . . . . . . . . . . . . Wheels 3218 | 52 102 306 176 2352 218 . . . . . 12 Hover 2444 | . . . . . . 8 497 216 72 1241 410 Flight 903 | . . . . . 346 557 . . . . . Fastest Speed 35 | 50 80 80 80 80 35 35 50 62 62 62 50 Average Speed 71 | 82 80 80 80 80 59 37 51 62 62 82 62 Slowest Speed 150 | 150 80 80 80 80 115 115 62 62 62 150 116 Overloaded Moves . | . . . . . . . . . . . . Propulsion Burnouts . | . . . . . . . . . . . . Robots Hopped 11 | . . . . . . 11 . . . . . Potential Cave-ins 1 | . . . . . . . . . . 1 . Cave-ins Triggered . | . . . . . . . . . . . . Exploration Rate (%) 38 | 4 24 86 18 91 16 22 16 84 3 84 11 Regions Visited 11 Branch Regions 3 Pre-discovered Areas 4 | . . 1 . 3 . . . . . . . Known Exits Taken 3 | . . . . . 1 1 . . 1 . . Unknown Exits Taken 5 | 1 1 1 1 1 . . . . . . . Scrap Searched 5 | . . 1 . 4 . . . . . . . Spaces Dug 59 | . . . 5 . 24 8 . 22 . . . Terrain Destroyed 519 | . . 12 8 . 51 8 . 87 . 350 3 Melee 25 | . . . . . 17 8 . . . . . Projectile 37 | . . 12 8 . 17 . . . . . . AOE 457 | . . . . . 17 . . 87 . 350 3 Terrain Rammed . | . . . . . . . . . . . . Walls Destroyed . | . . . . . . . . . . . . Machines Disabled . | . . . . . . . . . . . . Actions | -11 -10 -10 -10 -9 -6 -5 -4 -4 -4 -4 -4 --------- Run | Yrd Mat Min Sub Scr Fac Fac Fac Was Fac Gar Fac Total 8042 | 100 107 368 216 2574 803 810 596 262 97 1548 561 Wait 1021 | 8 1 38 29 200 161 235 89 41 26 138 55 Move 6596 | 70 101 305 175 2351 583 544 498 215 71 1239 444 Hop 9 | . . . . . . 9 . . . . . Pick Up 24 | 3 2 . . 3 1 . . 1 . 6 8 Fast Attach 55 | 7 . 2 . 6 6 5 7 . . 15 7 Attach 8 | . . . . 2 2 . 1 . . 3 . Detach 6 | . . . . 2 1 . . . . 3 . Swap 1 | . . . . . 1 . . . . . . Drop 33 | . . 2 . 10 3 . 1 . . 7 10 Fire 120 | 12 3 21 12 . 25 . . 5 . 31 11 Melee 61 | . . . . . 20 9 . . . 32 . Ram . | . . . . . . . . . . . . Kick . | . . . . . . . . . . . . Crush . | . . . . . . . . . . . . Escape Stasis 107 | . . . . . . 8 . . . 73 26 Rewire 1 | . . . . . . . . . . 1 . Trap . | . . . . . . . . . . . . Miscellaneous . | . . . . . . . . . . . . Route ------- -11/Scrapyard -10/Materials -10/Mines (discovered 2 exits: [*Mat] / [*Sub]) -10/Subcaves -9/Scraptown (discovered 2 exits: *Fac x2) -6/Factory (discovered 5 exits: *Fac x3 / Low x2) -5/Factory (discovered 3 exits: *Fac / Upp x2) -4/Factory -4/Waste -4/Factory -4/Garrison (discovered 3 exits: *Fac x3) -4/Factory (discovered 2 exits: *Upp / [*Arm]) History --------- Turn | Location | Event 2 | -11/Scrapyard | Met Revision 17 5 | -11/Scrapyard | Discovered new exit (range 13) 117 | -11/Scrapyard | Entered Materials 147 | -10/Materials | Discovered new exit (range 12) 210 | -10/Materials | Entered Mines 283 | -10/Mines | A weapon hastily lodged in a ceiling crevice suddenly fell to the ground 306 | -10/Mines | Build established: Mutant 354 | -10/Mines | Met a Derelict bent on vengeance 454 | -10/Mines | Found a damaged Exp. Sensor Array with a note attached 457 | -10/Mines | Found Prototype Device 457 | -10/Mines | Identified Exp. Sensor Array 471 | -10/Mines | Learned location of Storage (-9) 472 | -10/Mines | Discovered new exit (range 10) 557 | -10/Mines | Discovered new exit (range 4) 560 | -10/Mines | Entered Subcaves 561 | -10/Subcaves | Approached by a straggling Scientist 564 | -10/Subcaves | Learned Materials stockpile data 636 | -10/Subcaves | A swath of the cavern ceiling suddenly collapsed 761 | -10/Subcaves | Scientist uncovered a shortcut to Scraptown 766 | -10/Subcaves | Entered Scraptown 819 | -9/Scraptown | Heard Great Nut preacher, LISTEN AND RECITE! 827 | -9/Scraptown | Visited UFD Registry 832 | -9/Scraptown | Registered with UFD as "Hellslasher" 844 | -9/Scraptown | Visited IN-MT5's Study 870 | -9/Scraptown | Visited DA-N13 Charitable Foundation 891 | -9/Scraptown | Visited LU-1G1's Boring Crew 916 | -9/Scraptown | Visited Botcube Research 935 | -9/Scraptown | Visited Junk Repository 948 | -9/Scraptown | Visited Science Testing Area 961 | -9/Scraptown | Visited Derelict Rescue Squad 977 | -9/Scraptown | Visited Research Penetration Think Tank 1026 | -9/Scraptown | Visited Assassins FH 1043 | -9/Scraptown | Visited Spacefarers 1084 | -9/Scraptown | Visited Cyclists 1090 | -9/Scraptown | Visited CPS Storage 1120 | -9/Scraptown | Discovered new exit (range 5) 1388 | -9/Scraptown | Visited Cave Peace 1528 | -9/Scraptown | Entered Cyclist Reading Room 1778 | -9/Scraptown | Visited Cartography Club 1806 | -9/Scraptown | Found Surveybot 17 Chip 1820 | -9/Scraptown | Discovered new exit (range 10) 2180 | -9/Scraptown | Learned location of Recycling (-9) 2180 | -9/Scraptown | Learned location of Armory (-4) 2180 | -9/Scraptown | Learned location of Testing (-2) 2180 | -9/Scraptown | Learned 8 Materials zone layouts 2180 | -9/Scraptown | Learned 16 Factory zone layouts 2180 | -9/Scraptown | Learned 20 Factory zone layouts 2180 | -9/Scraptown | Learned 8 Access zone layouts 2180 | -9/Scraptown | Learned 12 Lower Caves zone layouts 2180 | -9/Scraptown | Learned 16 Upper Caves zone layouts 2180 | -9/Scraptown | Learned 24 Proximity Caves zone layouts 2180 | -9/Scraptown | Learned Research emergency access door positions 2180 | -9/Scraptown | Learned location of 1 exit from Factory 2180 | -9/Scraptown | Learned location of 1 exit from Lower Caves 2180 | -9/Scraptown | Learned location of 2 exits from Lower Caves 2281 | -9/Scraptown | Found Lrg. Botcube 2296 | -9/Scraptown | Visited Scrap Suit Storage 2381 | -9/Scraptown | Visited Chapter 10 2413 | -9/Scraptown | Found DCF Scrap (29 items) 2572 | -9/Scraptown | Found DRS Beacon 2627 | -9/Scraptown | Met Optimus 2627 | -9/Scraptown | Accepted into 0bPrime 2867 | -9/Scraptown | Entered Factory 2867 | -6/Factory | Evolved 8 slots: Power x1, Propulsion x1, Utility x6 2868 | -6/Factory | Identified exit to Lower Caves 2869 | -6/Factory | Identified exit to Factory 3207 | -6/Factory | Build established: Assassin 3278 | -6/Factory | Spotted B-75 Beast 3299 | -6/Factory | Lost 4 parts (1p2n1u) 3458 | -6/Factory | Discovered exit to Factory (range 15) 3501 | -6/Factory | Entered another Factory area 3501 | -5/Factory | Evolved 2 slots: Propulsion x1, Utility x1 3502 | -5/Factory | Identified exit to Upper Caves 3591 | -5/Factory | Build established: Mutant 3965 | -5/Factory | Discovered new exit (range 15) 3978 | -5/Factory | Identified exit to Factory 3990 | -5/Factory | Entered another Factory area 3990 | -4/Factory | Evolved 2 slots: Weapon x2 3991 | -4/Factory | Identified exit to Upper Caves 4011 | -4/Factory | Lost 5 parts (1n3u1w) 4259 | -4/Factory | Central database locked down 4350 | -4/Factory | Sucked down chute 4350 | -4/Factory | Entered Waste 4359 | -4/Waste | Spotted C-40 Crusher 4362 | -4/Waste | Spotted C-40 Crusher 4369 | -4/Waste | Spotted C-40 Crusher 4369 | -4/Waste | Spotted C-40 Crusher 4388 | -4/Waste | Spotted C-40 Crusher 4406 | -4/Waste | Warlord forces began an assault 4415 | -4/Waste | Allies destroyed C-40 Crusher 4417 | -4/Waste | Allies destroyed C-40 Crusher 4421 | -4/Waste | Allies destroyed C-40 Crusher 4430 | -4/Waste | Allies destroyed C-40 Crusher 4453 | -4/Waste | Allies destroyed C-40 Crusher 4459 | -4/Waste | Discovered new exit (range 16) 4460 | -4/Waste | Spotted C-40 Crusher 4470 | -4/Waste | Build established: Scout 4476 | -4/Waste | Allies destroyed C-40 Crusher 4504 | -4/Waste | Lost 5 allies 4516 | -4/Waste | Identified exit to Factory 4536 | -4/Waste | Entered Factory 4536 | -4/Factory | Accompanied by 13 allies 4569 | -4/Factory | Garrison activated, responded to threat 4585 | -4/Factory | Identified exit to Garrison 4607 | -4/Factory | Entered Garrison 4607 | -4/Garrison | Accompanied by 13 allies 4613 | -4/Garrison | Spotted Executioner 4614 | -4/Garrison | Spotted Executioner 4620 | -4/Garrison | Allies destroyed Executioner 4622 | -4/Garrison | Allies destroyed Executioner 4714 | -4/Garrison | Triggered checkpoint 4762 | -4/Garrison | Installed Relay Interface Framework 4834 | -4/Garrison | Garrison Relay disabled 4926 | -4/Garrison | Build established: Mutant 4963 | -4/Garrison | Lrg. Botcube activated 4975 | -4/Garrison | Lrg. Botcube completed mutation into legged form, armed with 1 gun. 5032 | -4/Garrison | Triggered checkpoint 5045 | -4/Garrison | Triggered checkpoint 5057 | -4/Garrison | Triggered checkpoint 5095 | -4/Garrison | Triggered checkpoint 5183 | -4/Garrison | Triggered checkpoint 5185 | -4/Garrison | Discovered new exit (range 11) 5197 | -4/Garrison | Identified exit to Factory 5220 | -4/Garrison | Triggered checkpoint 5255 | -4/Garrison | Triggered checkpoint 5302 | -4/Garrison | Lost 4 allies 5412 | -4/Garrison | Found embedded Infiltrators 5419 | -4/Garrison | Triggered checkpoint 5452 | -4/Garrison | Garrison Relay disabled 5484 | -4/Garrison | Discovered exit to Factory (range 12) 5580 | -4/Garrison | Garrison Relay disabled 5587 | -4/Garrison | Triggered checkpoint 5613 | -4/Garrison | Discovered exit to Factory (range 14) 5631 | -4/Garrison | Learned Factory security intel 5704 | -4/Garrison | Lost 3 parts (1p1n1u) 5727 | -4/Garrison | Phase Generator disabled 5897 | -4/Garrison | Garrison Relay disabled 6020 | -4/Garrison | Entered Factory 6020 | -4/Factory | Accompanied by 6 allies 6140 | -4/Factory | Found Lrg. Botcube 6213 | -4/Factory | Lrg. Botcube activated 6231 | -4/Factory | Lrg. Botcube completed mutation into wheeled form, armed with 2 guns, 2 cannons. 6270 | -4/Factory | First assault squad dispatched 6313 | -4/Factory | Spotted B-86 Titan 6322 | -4/Factory | Allied Derelicts emerged from ambush trap array 6337 | -4/Factory | Core integrity fell below 50% 6344 | -4/Factory | Found Prototype Launcher 6344 | -4/Factory | Identified Mni. Smartbomb Launcher 6348 | -4/Factory | Found Mni. Smartbomb Launcher 6376 | -4/Factory | Allies destroyed B-86 Titan 6380 | -4/Factory | Lost 8 allies 6388 | -4/Factory | Discovered exit to Upper Caves (range 16) 6403 | -4/Factory | Core integrity fell below 20% 6418 | -4/Factory | Discovered new exit (range 12) 6424 | -4/Factory | Destroyed by Y-72 Warden with Quantum Rifle Last Messages --------------- 06399_ U-05 Engineer lays Concrete. 06399_ Penetrated by Slug. 06399_ Authchip [R/Combat] destroyed. 06399_ Slug penetrates Construction Platform. 06400_ U-05 Engineer lays Concrete. 06400_ K-01 Serf collects debris. 06401_ U-05 Engineer lays Concrete. 06402_ Penetrated by Slug. 06402_ U-05 Engineer lays Concrete. 06402_ Slug penetrates Wall. 06403_ U-05 Engineer lays Concrete. 06412_ Remote Datajack destroyed. 06412_ Gyrokinetic Inverter destroyed. 06418_ EXIT=FOUND 06418_ Penetrated by Slug. 06420_ Slug penetrates Machine. 06421_ Penetrated by Slug. 06421_ Slug penetrates Machine. 06423_ Authchip [R/NC] destroyed. [Achievement: This Is Interesting...] Map ----- +----------------------------------------------------+ | ?????????????????????????????????????????????????? | | ?????????????????????????????????????????????????? | | ?????????????????????????????????????????????????? | | ?????????????????????????????????????????????????? | | ?????????????????????????????????????????????????? | | ?????????????????????????????????????????????????? | | ?????????????????????????????????????????????????? | | ?????????????????????????????????????????????????? | | ?????????????????????????????????????????????????? | | ?????????????????????????????????????????????????? | | ?????????????????????????????????????????????????? | | ?????????????????????????????????????????????????? | | ?????????????????????????????????????????????????? | | ?????????????????????????????????????????????????? | | ?????????????????????????"???????????????????????? | | ????????????????????????"" ??????????????????????? | | ???????????????????? ???? ??????????????????????? | | ?????????????????###+#####/#######???????????????? | | ?????????????????"" """""#??????????#+#??? | | ?????????????????" g "[["#??????????# #??? | | ?????????????????? [["#??????????# #??? | | ????????????????????"" """ [["#??????????# #??? | | ?????????????#"""???## Y##" """####+####### ###? | | ?????????????#" "# #" "# #? | | ?????????????+ + #? | | ?????????????+ Y < @Y + +? | | ?????????????+ k Y + #? | | ?????????????#" "# #" "# #? | | ?????????????#""" ??## ##" """;######### #? | | ???????????????????""" """ [["##???????# #? | | ?????????????????? [["#????????# #? | | ?????????????????" "[["#????????# #? | | ?????????????????"" """""#????????# #? | | ?????????????????#########/#######????????# ## | | ????????????????????????? ???????????????# # | | ????????????????????????"" ???????????????# # | | ???????????????????????""""???????????????# # | | ???????????????????????###????????????????# # | | ??????????????????????????????????????????+ " | | ??????????????????????????????????????????# # | | ??????????????????????????????????????????# # | | ??????????????????????????????????????????# " | | ??????????????????????????????????????????# " | | ??????????????????????????????????????????# "" | | ??????????????????????????????????? ?????# | | ??????????????????????????????????!/ #^ | | ???????????????????????????????????/ # | | ???????????????????????????????????? ! # | | ??????????????????????????????? # % | | ??????????????????????????????? # | +----------------------------------------------------+ Best States ------------- Heat Dissipation 43 Energy Generation 41 Energy Capacity 250 Matter Stores 300 Matter Capacity 300 Sight Range 16 Robot Scan Range 20 Terrain Scan Range 20 Terrain Scan Density 1210 Phase Shifting 15 Evasion (%) 72 Relay Coupler Types 1 Relay Coupler Value 67 Authchip Count 8 Item Schematics ----------------- None Robot Schematics ------------------ None Fabricated ------------ Nothing Repaired ---------- Nothing Studied --------- Imp. Antigrav System | -4/Factory | Hacked Imp. Linear Gravjet | -4/Factory | Hacked Alien Tech Used ----------------- None Achievements -------------- Bob, First Of His Name Frankenstein Join The Dark Side Late Bloomer Significant Disruption This Is Interesting... You Again Challenges ------------ None Game ------ Seed ReactiveSubdwellerMesh Manual? 0 Play Time 02:29:36 Cumulative 32.3 hours Start 2026.01.09 @ 06:58:36 End 2026.01.14 @ 11:27:02 Sessions 13 Manual Loads 0 Difficulty Rogue Special Mode None Game No. 38 Rogue 19 Adventurer 0 Explorer 19 Win Type - Total 1 Types 1/0/0/0/0/0/0/0/0/0 Lore% 27 Gallery% 28 Achievement% 23 Wizard Run 0 Options --------- Layout 0 ASCII 0 Keyboard 1 Movement Arrows Keybinds 0 Fullscreen 2 Font 12/Smallcaps Map View 76x50 Zoom Use 0% Tactical HUD 1 Map Filters NONE Filters NONE Steam X RUN: 60825c10-3cd5-4900-ac19-2da81ee17a36